[Event "Uruguayan Championship 2022"]
[Site "Montevideo"]
[Date "2022.04.10"]
[Round "3.6"]
[White "Carbone, Diego"]
[Black "Coppola, Claudio"]
[Result "0-1"]
[ECO "A58"]
[WhiteElo "2272"]
[BlackElo "2285"]
[Annotator "RC"]
[PlyCount "106"]
[EventDate "2022.04.08"]
[EventType "tourn"]
[EventCountry "URU"]
[SourceTitle "playchess.com"]
[Source "ChessBase"]
[SourceQuality "1"]
[TimeControl "40/5400+30:1800+30"]

1. d4 {[%emt 0:00:03]} Nf6 {[%emt 0:00:03]} 2. c4 {[%emt 0:00:08]} c5 {[%emt 0:00:02]} 3. d5 {[%emt 0:00:07]} b5 {[%emt 0:00:02]} 4. cxb5 {[%emt 0:00:20]} a6 {[%emt 0:00:03]} 5. bxa6 {[%emt 0:00:24]} g6 {[%emt 0:00:03]} 6. Nc3 {[%emt 0:00:10]} Bg7 {[%emt 0:00:04]} 7. e4 {[%emt 0:01:35]} O-O {[%emt 0:00:05]} 8. a7 {[%emt 0:00:31]} Rxa7 {[%emt 0:00:03]} 9. Nf3 {[%emt 0:00:08]} d6 {[%emt 0:00:03]} 10. Be2 {[%emt 0:03:43]} Na6 {[%emt 0:00:05]} 11. O-O {[%emt 0:01:33]} Nc7 {[%emt 0:00:03]} 12. a4 {[%emt 0:05:46]} Ba6 {[%emt 0:00:05]} 13. Ra3 {[%emt 0:03:44]} Qa8 {[%emt 0:03:29]} 14. Re1 {[%emt 0:07:29]} Rb8 {[%emt 0:00:28]} 15. Bxa6 {[%emt 0:08:25]} Rxa6 {[%emt 0:00:17]} 16. Qd3 {[%emt 0:00:34]} Nd7 {[%emt 0:11:46]} 17. b3 {[%emt 0:10:47]} Rab6 {[%emt 0:02:17]} 18. Nd2 {[%emt 0:05:46]} Ne5 {[%emt 0:13:13]} 19. Qc2 {[%emt 0:18:52]} Qa6 {[%emt 0:08:56]} 20. Re3 {[%emt 0:02:31]} h5 {[%emt 0:19:02]} 21. Nd1 {[%emt 0:13:28]} Rb4 {[%emt 0:16:54]} 22. h3 {[%emt 0:06:45]} Bh6 {[%emt 0:01:27]} 23. Rc3 {[%emt 0:01:14]} Qe2 {[%emt 0:00:57]} 24. Ne3 {[%emt 0:00:51]} Rd4 {[%emt 0:01:07]} 25. Ra1 {[%emt 0:03:13]} Rd3 {[%emt 0:03:14]} 26. Ndf1 {[%emt 0:04:33]} Qxc2 {[%emt 0:00:24]} 27. Rxc2 {[%emt 0:00:01]} Rdxb3 {[%emt 0:02:20]} 28. a5 {[%emt 0:00:45]} Bg7 {[%emt 0:00:40]} 29. Ra4 {[%emt 0:00:40]} R3b4 {[%emt 0:10:26]} 30. Rxb4 {[%emt 0:00:20]} Rxb4 {[%emt 0:00:01]} 31. Bd2 {[%emt 0:00:15]} Rxe4 {[%emt 0:00:40]} 32. Ra2 {[%emt 0:00:52]} Na6 {[%emt 0:02:06]} 33. Ng3 {[%emt 0:00:05]} Rh4 {[%emt 0:03:49]} 34. Kf1 {[%emt 0:01:06]} Nc4 {[%emt 0:00:38]} 35. Be1 {[%emt 0:00:41]} Rd4 {[%emt 0:00:54]} 36. Nxc4 {[%emt 0:00:30]} Rxc4 {[%emt 0:00:02]} 37. Ke2 {[%emt 0:00:30]} e6 {[%emt 0:01:16]} 38. dxe6 {[%emt 0:00:21]} fxe6 {[%emt 0:00:01]} 39. Ra3 {[%emt 0:00:32]} Rc2+ {[%emt 0:00:30]} 40. Kd1 {[%emt 0:00:39]} Rb2 {[%emt 0:00:08]} 41. Ne4 {[%emt 0:03:09]} d5 {[%emt 0:06:46]} 42. Ng5 {[%emt 0:00:30]} Rb1+ {[%emt 0:00:14]} 43. Ke2 {[%emt 0:01:31]} e5 44. Rf3 {[%emt 0:00:43]} e4 {[%emt 0:03:43]} 45. Rf7 d4 46. Ra7 {[%emt 0:04:14]} d3+ {[%emt 0:09:32]} 47. Kd2 {[%emt 0:00:15]} c4 {[%emt 0:03:24]} 48. Nxe4 {[%emt 0:01:23]} Bh6+ {[%emt 0:01:05]} 49. Kc3 {[%emt 0:04:55]} Rxe1 {[%emt 0:06:42]} 50. Ra8+ Bf8 51. f3 {[%emt 0:07:36]} Nc7 {[%emt 0:02:35]} 52. Rc8 {[%emt 0:00:34]} Nd5+ {[%emt 0:01:35]} 53. Kd4 {[%emt 0:01:29]} Rxe4+ {[%emt 0:00:21]} 0-1

[Event "Uruguayan Championship 2022"]
[Site "Montevideo"]
[Date "2022.04.11"]
[Round "4.1"]
[White "Diaz Hollemaert, Nahuel"]
[Black "Coppola, Claudio"]
[Result "1/2-1/2"]
[ECO "A25"]
[WhiteElo "2439"]
[BlackElo "2285"]
[Annotator "TA"]
[PlyCount "70"]
[EventDate "2022.04.08"]
[EventType "tourn"]
[EventCountry "URU"]
[SourceTitle "playchess.com"]
[Source "ChessBase"]
[SourceQuality "1"]
[TimeControl "40/5400+30:1800+30"]

{[%evp 9,70,0,0,-26,-27,-32,-7,-31,-29,-33,-29,-28,0,-15,60,64,43,47,143,118,173,56,128,120,122,129,252,265,250,256,240,142,145,145,147,139,154,145,139,147,179,158,188,105,111,104,105,102,135,116,111,115,113,116,129,126,134,0,145,99,111,0,140]} 1. c4 {[%emt 0:01:54]} e5 {[%emt 0:06:32]} 2. Nc3 {[%emt 0:00:52]} Nc6 {[%emt 0:00:04]} 3. g3 {[%emt 0:06:49]} Bc5 {[%emt 0:00:23]} 4. Bg2 {[%emt 0:00:36]} d6 {[%emt 0:00:05]} 5. Na4 {[%emt 0:04:47]} Nge7 {[%emt 0:05:11]} 6. Nxc5 {[%emt 0:09:40] A25: English Opening vs King's Indian with ...Nc6 but without early d3.} dxc5 {[%emt 0:00:08]} 7. d3 {[%emt 0:00:21]} Be6 {[%emt 0:04:37]} 8. Nf3 {[%emt 0:09:15]} f6 {[%emt 0:04:15] [#]} 9. b3 $146 {[%emt 0:14:00]} ({Predecessor:} 9. Nd2 Qd7 10. Ne4 b6 11. h4 O-O 12. Qa4 Rad8 13. Nc3 Qe8 14. Be3 Bd7 15. Nd5 Nxd5 16. Bxd5+ {0-1 (37) Kolbus,D (2315)-Pert,N (2570) Bournemouth 2016}) 9... Qd7 {[%emt 0:01:25]} 10. h3 {[%emt 0:06:31]} O-O-O {[%emt 0:10:30][%cal Oe5e4]} 11. Bb2 {[%emt 0:00:56]} g5 {[%emt 0:00:55]} ({Better is} 11... h5 $11) 12. Nd2 $14 {[%emt 0:04:14]} Rhf8 {[%emt 0:11:54]} 13. a3 {[%emt 0:00:54][%cal Ob3b4]} Kb8 {[%emt 0:06:55] [#]} (13... f5 $1 $14) 14. b4 $1 $16 {[%emt 0:17:47]} cxb4 {[%emt 0:00:33]} (14... h5 $16) 15. Ne4 {[%emt 0:05:31]} ({White should try} 15. axb4 $18 {b5 is the strong threat.} Nxb4 16. Bc3) 15... b6 {[%emt 0:00:49]} (15... b3 $14) 16. axb4 {[%emt 0:00:20]} Nxb4 {[%emt 0:00:35][%cal Oe6c4]} 17. Bc3 {[%emt 0:05:57] A strong pair of Bishops.} c5 {[%emt 0:11:18] [#]} (17... Nxd3+ $16 {keeps fighting.} 18. Qxd3 (18. exd3 Qxd3 19. Qxd3 Rxd3 $16) 18... Qxd3 19. exd3 Rxd3) 18. Nxf6 $1 $18 {[%emt 0:00:30][%mdl 512]} Qc7 {[%emt 0:01:12]} 19. Nxh7 {[%emt 0:00:26]} Rg8 {[%emt 0:07:11]} 20. Qa4 {[%emt 0:00:41]} (20. Qc1 $18) 20... Nec6 $16 {[%emt 0:05:23]} 21. Nf6 {[%emt 0:00:15]} Rgf8 {[%emt 0:01:35]} 22. Ne4 {[%emt 0:00:21]} Bd7 {[%emt 0:00:31]} 23. Qd1 {[%emt 0:02:48]} (23. Nxg5 Nd4 24. Qd1 Nbc2+ 25. Kd2 Rxf2 $17) 23... g4 {[%emt 0:02:02]} 24. h4 {[%emt 0:00:35]} Be6 {[%emt 0:00:43][%cal Oe6c4]} 25. Qb1 {[%emt 0:01:30]} Nd4 {[%emt 0:02:20]} 26. Bxd4 {[%emt 0:00:57]} (26. Bxb4 $18 cxb4 27. e3) 26... exd4 {[%emt 0:00:20]} 27. O-O {[%emt 0:00:06]} Bc8 {[%emt 0:01:26]} 28. Qc1 {[%emt 0:00:41]} Bb7 {[%emt 0:01:18]} 29. Qg5 {[%emt 0:00:36]} Rg8 {[%emt 0:00:16]} 30. Qh6 {[%emt 0:00:48]} Rh8 {[%emt 0:01:01]} 31. Qd2 {[%emt 0:00:39]} a5 {[%emt 0:01:04]} 32. Rab1 {[%emt 0:01:03]} Ka7 {[%emt 0:00:49]} 33. Ra1 {[%emt 0:00:41]} Kb8 $1 {[%emt 0:00:07]} 34. Qg5 {[%emt 0:00:13]} ({White should play} 34. Ng5) 34... Rhg8 {[%emt 0:00:37]} 35. Qd2 {[%emt 0:00:36]} Rh8 {Weighted Error Value: White=0.21 (precise) /Black=0.23 (precise)} 1/2-1/2

[Event "Uruguayan Championship 2022"]
[Site "Montevideo"]
[Date "2022.04.11"]
[Round "4.2"]
[White "Hoffman, Alejandro"]
[Black "Carbone, Diego"]
[Result "1/2-1/2"]
[ECO "D85"]
[WhiteElo "2403"]
[BlackElo "2272"]
[Annotator "TA"]
[PlyCount "43"]
[EventDate "2022.04.08"]
[EventType "tourn"]
[EventCountry "URU"]
[SourceTitle "playchess.com"]
[Source "ChessBase"]
[SourceQuality "1"]
[TimeControl "40/5400+30:1800+30"]

{[%evp 12,43,25,11,22,0,2,0,0,6,31,29,37,29,50,39,39,23,20,31,44,3,23,0,0,-8,-8,-10,-10,-6,-8,-10,-4,-10]} 1. d4 {[%emt 0:00:05]} Nf6 {[%emt 0:00:38]} 2. c4 {[%emt 0:00:11]} g6 {[%emt 0:00:32]} 3. Nc3 {[%emt 0:00:09]} d5 {[%emt 0:00:08]} 4. cxd5 {[%emt 0:00:24]} Nxd5 {[%emt 0:00:06]} 5. e4 {[%emt 0:00:15]} Nxc3 {[%emt 0:00:07]} 6. bxc3 {[%emt 0:00:05]} Bg7 {[%emt 0:00:07]} 7. Qa4+ {[%emt 0:00:51]} Qd7 {[%emt 0:01:46] D85: Exchange Grünfeld: Unusual White 7th moves and lines with 7 Nf3.} 8. Qa3 {[%emt 0:00:56] is now debated instead of 8.Qb3.} b6 {[%emt 0:00:54]} 9. Nf3 {[%emt 0:04:39]} c5 {[%emt 0:03:54][%cal Rc5d4]} 10. Be3 {[%emt 0:16:59]} Bb7 {[%emt 0:04:49]} 11. d5 {[%emt 0:13:08]} e6 {[%emt 0:06:59]} 12. Rd1 {[%emt 0:03:09]} O-O {[%emt 0:17:23][%cal Re6d5]} 13. Be2 {[%emt 0:02:43]} exd5 {[%emt 0:10:16]} 14. exd5 {[%emt 0:00:14] [#]} c4 $146 {[%emt 0:01:14]} (14... Bxd5 $2 15. c4 $18) ({Predecessor:} 14... Qd6 15. O-O Nd7 16. c4 Rfe8 17. Rfe1 Nf6 18. Bc1 Ne4 19. Bb2 Bxb2 20. Qxb2 {1-0 (63) Krasenkow,M (2630)-Safarli,E (2641) Porticcio 2017}) 15. O-O {[%emt 0:05:12]} Na6 {[%emt 0:13:49][%cal Bb8a6,Ba6c5,Bc5b7][%mdl 32]} 16. Bd4 {[%emt 0:16:56]} b5 $1 {[%emt 0:00:45]} 17. Bxg7 {[%emt 0:11:43]} (17. d6 $5 {[%cal Rd4g7]}) 17... Kxg7 {[%emt 0:00:04] The position is equal.} 18. Nd4 {[%emt 0:09:41]} Qxd5 {[%emt 0:05:05][%csl Gb7][%cal Rd5g2]} 19. Bf3 {[%emt 0:00:09] [#]} Qc5 {[%emt 0:00:05]} 20. Qxc5 {[%emt 0:00:07]} Nxc5 {[%emt 0:00:04]} 21. Bxb7 {[%emt 0:00:08]} Nxb7 {[%emt 0:00:03]} 22. Nxb5 {[%emt 0:00:28] Weighted Error Value: White=0.08 (flawless) /Black=0.07 (flawless)} 1/2-1/2

[Event "Uruguayan Championship 2022"]
[Site "Montevideo"]
[Date "2022.04.11"]
[Round "4.3"]
[White "Vaz Lacuesta, Leonardo"]
[Black "Roselli Mailhe, Bernardo"]
[Result "0-1"]
[ECO "B13"]
[WhiteElo "2018"]
[BlackElo "2426"]
[Annotator "TA"]
[PlyCount "100"]
[EventDate "2022.04.08"]
[EventType "tourn"]
[EventCountry "URU"]
[SourceTitle "playchess.com"]
[Source "ChessBase"]
[SourceQuality "1"]
[TimeControl "40/5400+30:1800+30"]

{[%evp 12,100,-20,0,-12,-24,-22,-26,-8,-26,4,0,0,0,5,0,0,0,0,0,0,0,0,-10,-6,-7,0,-67,-60,-64,-36,-66,-61,-83,-58,-64,-77,-87,-55,-104,-73,-154,-113,-127,-106,-114,-89,-101,-98,-102,-102,-94,-95,-91,0,0,0,0,0,0,0,0,0,0,0,0,0,0,0,0,18,9,23,0,0,0,0,0,0,0,-21,-308,-282,-435,-423,-645,-618,-1057,-956,-779,-672]} 1. e4 {[%emt 0:00:06]} c6 {[%emt 0:00:23]} 2. d4 {[%emt 0:01:44]} d5 {[%emt 0:00:07]} 3. exd5 {[%emt 0:01:05]} cxd5 {[%emt 0:00:08]} 4. Nf3 {[%emt 0:00:52]} Nc6 {[%emt 0:01:24]} 5. Bd3 {[%emt 0:05:31]} Bg4 {[%emt 0:02:28]} 6. c3 {[%emt 0:02:23]} Qc7 {[%emt 0:04:02]} 7. O-O {[%emt 0:04:15]} e6 {[%emt 0:01:46] B13: Caro-Kann: Exchange Variation and Panov-Botvinnik Attack.} 8. Be3 {[%emt 0:03:35]} Bd6 {[%emt 0:03:03][%cal Od6h2]} 9. h3 {[%emt 0:00:16]} Bh5 {[%emt 0:00:07] Black has an edge.} 10. Nbd2 {[%emt 0:00:49]} Nf6 {[%emt 0:03:42]} 11. Qc2 {[%emt 0:07:20]} O-O {[%emt 0:06:04] [#]} 12. a3 $146 {[%emt 0:03:36]} ({Predecessor:} 12. Bg5 Bg6 13. Bxf6 gxf6 14. h4 Rac8 15. a3 e5 16. dxe5 fxe5 17. Bxg6 hxg6 18. Ng5 {0-1 (30) Vora,T (1895)-Tissier,G Biel 2021}) 12... Rfc8 {[%emt 0:07:41]} 13. Rfc1 {[%emt 0:14:48]} Bg6 {[%emt 0:15:25]} 14. Bxg6 {[%emt 0:05:25]} hxg6 {[%emt 0:00:12]} 15. Qd3 {[%emt 0:00:38]} Rab8 {[%emt 0:18:10]} 16. b3 {[%emt 0:14:10]} Qe7 {[%emt 0:07:38]} 17. a4 {[%emt 0:05:25]} b6 {[%emt 0:04:19]} 18. Bg5 {[%emt 0:05:06]} Qc7 {[%emt 0:02:10]} 19. Bxf6 {[%emt 0:04:49]} ({White should play} 19. Re1 $11) 19... gxf6 $15 {[%emt 0:00:05]} 20. c4 {[%emt 0:00:34]} Nb4 {[%emt 0:02:27]} 21. Qf1 {[%emt 0:04:02]} Qd8 {[%emt 0:00:23]} 22. g3 {[%emt 0:01:02]} a5 {[%emt 0:00:05]} 23. Kg2 {[%emt 0:01:11]} Bf8 {[%emt 0:01:11]} 24. Qe2 {[%emt 0:00:45]} Bh6 {[%emt 0:00:46]} 25. Rc3 {[%emt 0:01:37]} (25. h4 $15) 25... Rc7 {[%emt 0:02:29][%cal Oe6e5]} 26. Nf1 {[%emt 0:00:25]} ({White should try} 26. Rd1) 26... Rbc8 {[%emt 0:01:09][%cal Oe6e5]} 27. Ne3 {[%emt 0:02:30]} Bxe3 {[%emt 0:00:47]} 28. fxe3 {[%emt 0:00:10]} dxc4 {[%emt 0:00:29]} 29. Rxc4 {[%emt 0:01:00]} Rxc4 {[%emt 0:02:27]} 30. bxc4 {[%emt 0:00:04]} Qc7 {[%emt 0:01:51]} 31. Nd2 {[%emt 0:00:33]} Qc6+ {[%emt 0:00:18]} 32. Kf2 {[%emt 0:01:59]} e5 {[%emt 0:01:56]} (32... f5 $17) 33. d5 $1 $11 {[%emt 0:03:05]} Qd7 {[%emt 0:00:41]} 34. Kg2 {[%emt 0:01:02]} f5 {[%emt 0:01:20]} 35. e4 {[%emt 0:01:01]} Nc2 $1 {[%emt 0:01:15]} 36. Ra2 {[%emt 0:00:28]} Nd4 {[%emt 0:00:09]} 37. Qe3 {[%emt 0:00:42]} Kg7 {[%emt 0:00:51]} 38. exf5 {[%emt 0:00:38]} Qxf5 {[%emt 0:01:17]} 39. g4 {[%emt 0:00:28]} Qf6 {[%emt 0:01:41]} 40. Rb2 {[%emt 0:00:55]} Qd6 {[%emt 0:04:09]} 41. Ne4 {[%emt 0:30:39]} Qd8 {[%emt 0:07:50]} 42. Nd2 {[%emt 0:00:00]} Qc7 {[%emt 0:04:40]} 43. Rb1 {[%emt 0:00:00]} Re8 {[%emt 0:01:37]} 44. g5 {[%emt 0:00:00]} Qd7 {[%emt 0:02:06]} 45. Rxb6 {[%emt 0:00:00]} Qxa4 {[%emt 0:00:08]} 46. Qf2 $2 {[%emt 0:03:15][%mdl 8192] Now White is beyond hope.} (46. d6 $11) 46... Nf5 $19 {[%emt 0:03:28] [#] And now ...e4 would win. Active counter play!} 47. Rf6 {[%emt 0:00:30]} (47. Rb7 {is the only way for White.} Qc2 48. d6) 47... Qc2 {[%emt 0:06:30] aiming for ...a4. Black is clearly winning.} 48. Nf1 {[%emt 0:02:34]} (48. d6 $142 a4 49. Nf1 (49. d7 $2 Rd8 $19) 49... Qxc4 50. Ne3 Nxe3+ 51. Qxe3) 48... Qxc4 {[%emt 0:00:23]} 49. Ng3 {[%emt 0:00:28]} Qxd5+ {[%emt 0:00:14]} 50. Kh2 {[%emt 0:00:26]} Nxg3 {[%emt 0:00:52] Weighted Error Value: White=0.37/Black=0.08 (flawless)} 0-1

[Event "Uruguayan Championship 2022"]
[Site "Montevideo"]
[Date "2022.04.11"]
[Round "4.4"]
[White "Vazquez, Facundo"]
[Black "Lopez Azambuja, Nicolas"]
[Result "1/2-1/2"]
[ECO "E40"]
[WhiteElo "2319"]
[BlackElo "2318"]
[Annotator "RC"]
[PlyCount "90"]
[EventDate "2022.04.08"]
[EventType "tourn"]
[EventCountry "URU"]
[SourceTitle "playchess.com"]
[Source "ChessBase"]
[SourceQuality "1"]
[TimeControl "40/5400+30:1800+30"]

1. d4 {[%emt 0:00:03]} Nf6 {[%emt 0:00:12]} 2. c4 {[%emt 0:00:08]} e6 {[%emt 0:00:11]} 3. Nc3 {[%emt 0:00:08]} Bb4 {[%emt 0:00:17]} 4. e3 {[%emt 0:00:10]} Bxc3+ {[%emt 0:02:32]} 5. bxc3 {[%emt 0:00:09]} b6 {[%emt 0:00:12]} 6. Bd3 {[%emt 0:03:39]} Nc6 {[%emt 0:02:28]} 7. Ne2 {[%emt 0:04:37]} Ba6 {[%emt 0:01:31]} 8. Ng3 {[%emt 0:02:54]} Na5 {[%emt 0:02:35]} 9. Qe2 {[%emt 0:10:16]} d5 {[%emt 0:15:34]} 10. e4 {[%emt 0:20:20]} Bxc4 {[%emt 0:16:01]} 11. Bxc4 {[%emt 0:01:18]} dxc4 {[%emt 0:01:27]} 12. O-O {[%emt 0:05:29]} Qe7 {[%emt 0:07:24]} 13. Bg5 {[%emt 0:11:25]} h6 {[%emt 0:01:58]} 14. Bxf6 {[%emt 0:00:07]} Qxf6 {[%emt 0:01:16]} 15. e5 {[%emt 0:00:18]} Qg6 {[%emt 0:04:44]} 16. Ne4 {[%emt 0:01:18]} O-O {[%emt 0:08:20]} 17. Rad1 {[%emt 0:01:43]} Nc6 {[%emt 0:01:04]} 18. Ng3 {[%emt 0:02:21]} b5 {[%emt 0:00:13]} 19. f4 {[%emt 0:07:42]} Ne7 {[%emt 0:01:52]} 20. f5 {[%emt 0:04:53]} Nxf5 {[%emt 0:02:29]} 21. Nxf5 {[%emt 0:02:12]} exf5 {[%emt 0:00:05]} 22. Qf3 {[%emt 0:01:31]} Rfe8 {[%emt 0:04:10]} 23. Rb1 {[%emt 0:03:31]} c6 {[%emt 0:03:34]} 24. Qxf5 {[%emt 0:03:37]} Qxf5 {[%emt 0:00:05]} 25. Rxf5 {[%emt 0:00:02]} Rab8 {[%emt 0:05:50]} 26. Kf2 {[%emt 0:02:25]} a5 {[%emt 0:03:04]} 27. a3 {[%emt 0:00:02]} Red8 {[%emt 0:04:55]} 28. Ke3 {[%emt 0:03:12]} Rd5 {[%emt 0:04:04]} 29. Ke4 {[%emt 0:01:46]} Re8 {[%emt 0:00:21]} 30. Kf4 {[%emt 0:01:31]} Re6 {[%emt 0:01:00]} 31. Ke4 {[%emt 0:03:14]} Kf8 {[%emt 0:01:48]} 32. a4 {[%emt 0:00:16]} Ke7 {[%emt 0:01:21]} 33. axb5 {[%emt 0:01:06]} Rxb5 {[%emt 0:00:03]} 34. Rxb5 {[%emt 0:00:21]} cxb5 {[%emt 0:00:01]} 35. Kd5 {[%emt 0:00:29]} f6 {[%emt 0:02:14]} 36. Kc5 {[%emt 0:01:10]} fxe5 {[%emt 0:00:15]} 37. d5 {[%emt 0:00:35]} g6 {[%emt 0:01:56]} 38. Rf2 {[%emt 0:01:35]} Rd6 {[%emt 0:00:34]} 39. Re2 {[%emt 0:00:19]} b4 {[%emt 0:00:13]} 40. Rxe5+ {[%emt 0:00:31]} Kd7 {[%emt 0:00:04]} 41. cxb4 {[%emt 0:04:43]} axb4 {[%emt 0:01:20]} 42. Kxc4 {[%emt 0:06:47]} Rf6 {[%emt 0:02:16]} 43. Re2 {[%emt 0:01:25]} Kd6 {[%emt 0:00:39]} 44. Kxb4 {[%emt 0:00:43]} Kxd5 {[%emt 0:00:21]} 45. Kc3 {[%emt 0:00:14]} Rf1 {[%emt 0:02:16]} 1/2-1/2

[Event "Uruguayan Championship 2022"]
[Site "Montevideo"]
[Date "2022.04.11"]
[Round "4.5"]
[White "Carvalho, Guillermo"]
[Black "Rodi, Luis Ernesto"]
[Result "0-1"]
[ECO "D02"]
[WhiteElo "2171"]
[BlackElo "2347"]
[Annotator "RC"]
[PlyCount "58"]
[EventDate "2022.04.08"]
[EventType "tourn"]
[EventCountry "URU"]
[SourceTitle "playchess.com"]
[Source "ChessBase"]
[SourceQuality "1"]
[TimeControl "40/5400+30:1800+30"]

1. d4 {[%emt 0:02:05]} d5 {[%emt 0:00:08]} 2. Nf3 {[%emt 0:00:24]} Nf6 {[%emt 0:00:06]} 3. g3 {[%emt 0:00:15]} Bg4 {[%emt 0:00:40]} 4. Bg2 {[%emt 0:01:38]} c6 {[%emt 0:00:25]} 5. c3 {[%emt 0:01:28]} Nbd7 {[%emt 0:00:30]} 6. Qb3 {[%emt 0:01:55]} Qb6 {[%emt 0:00:14]} 7. Bf4 {[%emt 0:05:53]} e6 {[%emt 0:00:39]} 8. O-O {[%emt 0:03:09]} h6 {[%emt 0:00:17]} 9. h3 {[%emt 0:01:33]} Bf5 {[%emt 0:03:38]} 10. g4 {[%emt 0:04:15]} Bh7 {[%emt 0:00:59]} 11. Nbd2 {[%emt 0:02:39]} Be7 {[%emt 0:04:08]} 12. Ne5 {[%emt 0:03:23]} c5 {[%emt 0:08:12]} 13. Nxd7 {[%emt 0:03:35]} Nxd7 {[%emt 0:00:54]} 14. e4 {[%emt 0:16:42]} cxd4 {[%emt 0:01:01]} 15. cxd4 {[%emt 0:05:59]} Nf6 {[%emt 0:10:40]} 16. e5 {[%emt 0:17:41]} Nd7 {[%emt 0:01:39]} 17. Be3 {[%emt 0:07:05]} O-O-O {[%emt 0:05:04]} 18. Rfc1+ {[%emt 0:00:41]} Kb8 {[%emt 0:01:05]} 19. Bf1 {[%emt 0:00:48]} h5 {[%emt 0:02:18]} 20. a4 {[%emt 0:02:30]} hxg4 {[%emt 0:00:59]} 21. Qxb6 {[%emt 0:00:28]} Nxb6 {[%emt 0:05:56]} 22. hxg4 {[%emt 0:01:29]} Rc8 {[%emt 0:03:20]} 23. f3 {[%emt 0:00:26]} Rxc1 {[%emt 0:01:13]} 24. Rxc1 {[%emt 0:00:05]} Nxa4 {[%emt 0:00:07]} 25. b3 {[%emt 0:00:18]} Nb6 {[%emt 0:00:11]} 26. f4 {[%emt 0:00:59]} Rc8 {[%emt 0:00:16]} 27. Rxc8+ {[%emt 0:00:08]} Kxc8 {[%emt 0:00:25]} 28. Be2 {[%emt 0:00:59]} Bc2 {[%emt 0:00:09]} 29. Kf2 {[%emt 0:01:53]} Bb4 {[%emt 0:00:19]} 0-1

[Event "Uruguayan Championship 2022"]
[Site "Montevideo"]
[Date "2022.04.11"]
[Round "4.6"]
[White "Granara Barreto, Sebastian"]
[Black "Palacio, Enzo"]
[Result "1-0"]
[ECO "B50"]
[WhiteElo "2131"]
[BlackElo "1896"]
[Annotator "RC"]
[PlyCount "73"]
[EventDate "2022.04.08"]
[EventType "tourn"]
[EventCountry "URU"]
[SourceTitle "playchess.com"]
[Source "ChessBase"]
[SourceQuality "1"]
[TimeControl "40/5400+30:1800+30"]

1. e4 {[%emt 0:00:03]} c5 {[%emt 0:00:05]} 2. Nf3 {[%emt 0:00:06]} d6 {[%emt 0:00:14]} 3. c3 {[%emt 0:00:08]} Nf6 {[%emt 0:00:09]} 4. h3 {[%emt 0:00:07]} Nc6 {[%emt 0:00:10]} 5. Bd3 {[%emt 0:00:05]} d5 {[%emt 0:00:06]} 6. e5 {[%emt 0:00:05]} Nd7 {[%emt 0:00:05]} 7. Bb5 {[%emt 0:00:04]} Qb6 {[%emt 0:00:34]} 8. Bxc6 {[%emt 0:00:06]} Qxc6 {[%emt 0:01:08]} 9. d4 {[%emt 0:00:20]} e6 {[%emt 0:04:47]} 10. O-O {[%emt 0:00:11]} Be7 {[%emt 0:02:40]} 11. Re1 {[%emt 0:03:52]} Qb6 {[%emt 0:05:45]} 12. a4 {[%emt 0:03:04]} O-O {[%emt 0:07:20]} 13. a5 {[%emt 0:08:28]} Qc7 {[%emt 0:02:17]} 14. Bf4 {[%emt 0:04:42]} b6 {[%emt 0:10:36]} 15. axb6 {[%emt 0:02:00]} Nxb6 {[%emt 0:02:49]} 16. Na3 {[%emt 0:02:08]} Bd7 {[%emt 0:05:16]} 17. dxc5 {[%emt 0:20:55]} Qxc5 {[%emt 0:07:23]} 18. Nd4 {[%emt 0:06:17]} Nc4 {[%emt 0:08:35]} 19. Nxc4 {[%emt 0:02:55]} Qxc4 {[%emt 0:02:06]} 20. Re3 {[%emt 0:00:23]} Rfb8 {[%emt 0:11:57]} 21. b3 {[%emt 0:03:27]} Qc8 {[%emt 0:01:02]} 22. Rg3 {[%emt 0:00:43]} g6 {[%emt 0:01:44]} 23. Qd2 {[%emt 0:10:11]} Qd8 {[%emt 0:02:19]} 24. Bh6 {[%emt 0:01:15]} Rb7 {[%emt 0:03:16]} 25. Qf4 {[%emt 0:01:56]} Rc8 {[%emt 0:04:24]} 26. Rf3 {[%emt 0:01:19]} Qe8 {[%emt 0:00:52]} 27. h4 {[%emt 0:04:33]} Rbc7 {[%emt 0:00:56]} 28. h5 {[%emt 0:03:14]} Bf8 {[%emt 0:07:16]} 29. Bg5 {[%emt 0:06:47]} Be7 {[%emt 0:02:29]} 30. hxg6 {[%emt 0:01:17]} fxg6 {[%emt 0:00:38]} 31. Bf6 {[%emt 0:00:21]} Qf7 {[%emt 0:03:12]} 32. Qg5 {[%emt 0:01:16]} Re8 {[%emt 0:02:19]} 33. Ra6 {[%emt 0:03:17]} Bc8 {[%emt 0:01:23]} 34. Rc6 {[%emt 0:00:49]} Rxc6 {[%emt 0:00:46]} 35. Nxc6 {[%emt 0:00:04]} Bxf6 {[%emt 0:00:12]} 36. exf6 {[%emt 0:00:14]} Rf8 {[%emt 0:01:05]} 37. Ne5 {[%emt 0:00:08]} 1-0